[Event "Titled Tuesday Blitz June 21 Late 2022"]
[White "Wartiovaara, Oliver"]
[Black "Carbone, Diego"]
[WhiteFideId "513024"]
[BlackFideId "3002179"]
[WhiteElo "1971"]
[BlackElo "2199"]
[Result "0-1"]
[Round "06"]
[TimeControl "180+1"]
[Date "2022.06.22"]
[WhiteClock "0:00:51"]
[BlackClock "0:02:26"]

1. e4 {[%clk 0:03:00]}  e5 {[%clk 0:02:59]} 2. f4 {[%clk 0:02:59]}  Nc6 {[%clk 0:03:00]} 3. Nf3 {[%clk 0:02:58]}  d6 {[%clk 0:02:49]} 4. Bb5 {[%clk 0:02:50]}  exf4 {[%clk 0:02:47]} 5. d4 {[%clk 0:02:49]}  g5 {[%clk 0:02:47]} 6. d5 {[%clk 0:02:34]}  a6 {[%clk 0:02:45]} 7. Ba4 {[%clk 0:01:54]}  b5 {[%clk 0:02:42]} 8. dxc6 {[%clk 0:01:54]}  bxa4 {[%clk 0:02:42]} 9. Qd4 {[%clk 0:01:45]}  Qf6 {[%clk 0:02:41]} 10. Qxf6 {[%clk 0:01:41]}  Nxf6 {[%clk 0:02:42]} 11. Nc3 {[%clk 0:01:32]}  a3 {[%clk 0:02:38]} 12. bxa3 {[%clk 0:01:11]}  Bg7 {[%clk 0:02:34]} 13. Rb1 {[%clk 0:01:11]}  h6 {[%clk 0:02:32]} 14. Nd5 {[%clk 0:00:58]}  Nxd5 {[%clk 0:02:28]} 15. exd5 {[%clk 0:00:59]}  O-O {[%clk 0:02:29]} 16. Bb2 {[%clk 0:00:51]}  Rb8 {[%clk 0:02:26]} 0-1


[Site "https://www.chess.com"]

[Event "Titled Tuesday Blitz June 21 Late 2022"]
[White "Weisz, Bryan"]
[Black "Bjelobrk, Igor"]
[WhiteFideId "30934133"]
[BlackFideId "4300726"]
[WhiteElo "2265"]
[BlackElo "2335"]
[Result "0-1"]
[Round "06"]
[TimeControl "180+1"]
[Date "2022.06.22"]
[WhiteClock "0:01:55"]
[BlackClock "0:01:46"]

1. Nc3 {[%clk 0:02:59]}  Nf6 {[%clk 0:02:48]} 2. e4 {[%clk 0:02:59]}  e5 {[%clk 0:02:47]} 3. Nf3 {[%clk 0:02:59]}  Nc6 {[%clk 0:02:46]} 4. d4 {[%clk 0:02:57]}  exd4 {[%clk 0:02:44]} 5. Nd5 {[%clk 0:02:57]}  Be7 {[%clk 0:02:38]} 6. Nxd4 {[%clk 0:02:55]}  O-O {[%clk 0:02:28]} 7. Nb5 {[%clk 0:02:54]}  Nxd5 {[%clk 0:02:25]} 8. exd5 {[%clk 0:02:55]}  Ne5 {[%clk 0:02:25]} 9. d6 {[%clk 0:02:53]}  cxd6 {[%clk 0:02:24]} 10. Nxd6 {[%clk 0:02:53]}  Bxd6 {[%clk 0:02:17]} 11. Qxd6 {[%clk 0:02:53]}  Re8 {[%clk 0:02:17]} 12. Be2 {[%clk 0:02:42]}  b6 {[%clk 0:02:11]} 13. O-O {[%clk 0:02:38]}  Bb7 {[%clk 0:02:11]} 14. Bb5 {[%clk 0:02:25]}  Re6 {[%clk 0:02:09]} 15. Qd4 {[%clk 0:02:22]}  Rg6 {[%clk 0:02:04]} 16. f3 {[%clk 0:02:12]}  Nxf3+ {[%clk 0:02:01]} 17. Rxf3 {[%clk 0:02:12]}  Bxf3 {[%clk 0:02:01]} 18. g3 {[%clk 0:02:00]}  Bc6 {[%clk 0:01:59]} 19. Bd3 {[%clk 0:01:58]}  Re6 {[%clk 0:01:55]} 20. Bf4 {[%clk 0:01:57]}  Qe7 {[%clk 0:01:53]} 21. Rd1 {[%clk 0:01:55]}  Re1+ {[%clk 0:01:48]} 22. Bf1 {[%clk 0:01:55]}  Rxd1 {[%clk 0:01:47]} 23. Qxd1 {[%clk 0:01:55]}  Qc5+ {[%clk 0:01:46]} 0-1


[Site "https://www.chess.com"]

[Event "Titled Tuesday Blitz June 21 Late 2022"]
[White "Yurovskykh, Oleksandr"]
[Black "Mei, Austin"]
[WhiteFideId "14134020"]
[BlackFideId "30948479"]
[WhiteElo "2292"]
[BlackElo "1936"]
[Result "1-0"]
[Round "06"]
[TimeControl "180+1"]
[Date "2022.06.22"]
[WhiteClock "0:00:17"]
[BlackClock "0:00:19"]

1. d4 {[%clk 0:03:00]}  Nf6 {[%clk 0:02:58]} 2. c4 {[%clk 0:03:00]}  e5 {[%clk 0:02:58]} 3. dxe5 {[%clk 0:03:00]}  Ng4 {[%clk 0:02:58]} 4. Bf4 {[%clk 0:03:00]}  g5 {[%clk 0:02:58]} 5. Bg3 {[%clk 0:02:59]}  Bg7 {[%clk 0:02:59]} 6. Nf3 {[%clk 0:02:59]}  Nc6 {[%clk 0:02:58]} 7. h4 {[%clk 0:02:58]}  Ngxe5 {[%clk 0:02:57]} 8. Nxe5 {[%clk 0:02:57]}  Nxe5 {[%clk 0:02:58]} 9. e3 {[%clk 0:02:34]}  d6 {[%clk 0:02:56]} 10. Nc3 {[%clk 0:02:32]}  Bf5 {[%clk 0:02:47]} 11. hxg5 {[%clk 0:02:28]}  Qxg5 {[%clk 0:02:46]} 12. Qd2 {[%clk 0:02:04]}  Qg6 {[%clk 0:02:39]} 13. Nd5 {[%clk 0:01:59]}  Rc8 {[%clk 0:02:31]} 14. Nf4 {[%clk 0:01:39]}  Qf6 {[%clk 0:02:30]} 15. Nh5 {[%clk 0:01:34]}  Qg6 {[%clk 0:02:31]} 16. Nxg7+ {[%clk 0:01:34]}  Qxg7 {[%clk 0:02:32]} 17. O-O-O {[%clk 0:01:31]}  h5 {[%clk 0:02:27]} 18. Qa5 {[%clk 0:01:20]}  b6 {[%clk 0:02:13]} 19. Bxe5 {[%clk 0:01:11]}  Qxe5 {[%clk 0:02:09]} 20. Qxe5+ {[%clk 0:01:11]}  dxe5 {[%clk 0:02:10]} 21. g3 {[%clk 0:01:07]}  Be4 {[%clk 0:02:08]} 22. Rh4 {[%clk 0:01:06]}  Bf3 {[%clk 0:02:05]} 23. Rd2 {[%clk 0:01:07]}  Ke7 {[%clk 0:02:04]} 24. Be2 {[%clk 0:01:05]}  Bxe2 {[%clk 0:02:00]} 25. Rxe2 {[%clk 0:01:05]}  Rcd8 {[%clk 0:02:00]} 26. Rd2 {[%clk 0:01:06]}  Rxd2 {[%clk 0:01:52]} 27. Kxd2 {[%clk 0:01:07]}  Kf6 {[%clk 0:01:51]} 28. Ke2 {[%clk 0:01:04]}  Kg5 {[%clk 0:01:51]} 29. c5 {[%clk 0:00:54]}  Rd8 {[%clk 0:01:38]} 30. Ra4 {[%clk 0:00:49]}  a5 {[%clk 0:01:38]} 31. cxb6 {[%clk 0:00:49]}  cxb6 {[%clk 0:01:38]} 32. Rc4 {[%clk 0:00:50]}  Rd6 {[%clk 0:01:35]} 33. Rc7 {[%clk 0:00:49]}  f6 {[%clk 0:01:32]} 34. Rc8 {[%clk 0:00:45]}  Kf5 {[%clk 0:01:18]} 35. Rh8 {[%clk 0:00:41]}  Kg6 {[%clk 0:01:18]} 36. e4 {[%clk 0:00:41]}  Rd4 {[%clk 0:01:17]} 37. Ke3 {[%clk 0:00:41]}  Ra4 {[%clk 0:01:13]} 38. a3 {[%clk 0:00:41]}  Rc4 {[%clk 0:01:13]} 39. Rb8 {[%clk 0:00:40]}  Rc6 {[%clk 0:01:11]} 40. f4 {[%clk 0:00:16]}  Kg7 {[%clk 0:00:41]} 41. f5 {[%clk 0:00:16]}  Rd6 {[%clk 0:00:36]} 42. Rb7+ {[%clk 0:00:15]}  Kh6 {[%clk 0:00:35]} 43. Rf7 {[%clk 0:00:16]}  Rc6 {[%clk 0:00:28]} 44. Rf8 {[%clk 0:00:16]}  Kg7 {[%clk 0:00:27]} 45. Rb8 {[%clk 0:00:17]}  Rd6 {[%clk 0:00:28]} 46. Ke2 {[%clk 0:00:15]}  Kh6 {[%clk 0:00:26]} 47. Rg8 {[%clk 0:00:15]}  Kh7 {[%clk 0:00:19]} 48. Rg6 {[%clk 0:00:15]}  Rc6 {[%clk 0:00:19]} 49. b4 {[%clk 0:00:10]}  axb4 {[%clk 0:00:19]} 50. axb4 {[%clk 0:00:10]}  b5 {[%clk 0:00:20]} 51. Kf3 {[%clk 0:00:11]}  Rc3+ {[%clk 0:00:18]} 52. Kg2 {[%clk 0:00:11]}  Rc4 {[%clk 0:00:18]} 53. Kf3 {[%clk 0:00:10]}  Rc3+ {[%clk 0:00:18]} 54. Kg2 {[%clk 0:00:10]}  Rc4 {[%clk 0:00:18]} 55. Rxf6 {[%clk 0:00:10]}  Rxe4 {[%clk 0:00:18]} 56. Re6 {[%clk 0:00:11]}  Rxb4 {[%clk 0:00:16]} 57. Rxe5 {[%clk 0:00:12]}  Kg7 {[%clk 0:00:16]} 58. Re6 {[%clk 0:00:09]}  Rb2+ {[%clk 0:00:14]} 59. Kh3 {[%clk 0:00:09]}  b4 {[%clk 0:00:15]} 60. Kh4 {[%clk 0:00:09]}  b3 {[%clk 0:00:12]} 61. Rb6 {[%clk 0:00:08]}  Rh2+ {[%clk 0:00:10]} 62. Kg5 {[%clk 0:00:08]}  b2 {[%clk 0:00:11]} 63. Rb7+ {[%clk 0:00:08]}  Kg8 {[%clk 0:00:09]} 64. Kg6 {[%clk 0:00:08]}  Kf8 {[%clk 0:00:08]} 65. f6 {[%clk 0:00:08]}  Ke8 {[%clk 0:00:09]} 66. f7+ {[%clk 0:00:08]}  Kf8 {[%clk 0:00:09]} 67. Rb8+ {[%clk 0:00:08]}  Ke7 {[%clk 0:00:10]} 68. f8=Q+ {[%clk 0:00:09]}  Kd7 {[%clk 0:00:11]} 69. Qd8+ {[%clk 0:00:09]}  Ke6 {[%clk 0:00:11]} 70. Rb6+ {[%clk 0:00:09]}  Ke5 {[%clk 0:00:12]} 71. Qd6+ {[%clk 0:00:09]}  Ke4 {[%clk 0:00:12]} 72. Rb4+ {[%clk 0:00:10]}  Kf3 {[%clk 0:00:12]} 73. Qf4+ {[%clk 0:00:10]}  Kg2 {[%clk 0:00:12]} 74. Rxb2+ {[%clk 0:00:11]}  Kh3 {[%clk 0:00:13]} 75. Rxh2+ {[%clk 0:00:11]}  Kxh2 {[%clk 0:00:14]} 76. Qh4+ {[%clk 0:00:12]}  Kg2 {[%clk 0:00:14]} 77. Kxh5 {[%clk 0:00:12]}  Kf3 {[%clk 0:00:14]} 78. g4 {[%clk 0:00:13]}  Kg2 {[%clk 0:00:15]} 79. g5 {[%clk 0:00:13]}  Kf3 {[%clk 0:00:16]} 80. g6 {[%clk 0:00:14]}  Ke2 {[%clk 0:00:16]} 81. Qg3 {[%clk 0:00:14]}  Kf1 {[%clk 0:00:17]} 82. Qh2 {[%clk 0:00:15]}  Ke1 {[%clk 0:00:17]} 83. g7 {[%clk 0:00:16]}  Kf1 {[%clk 0:00:18]} 84. g8=Q {[%clk 0:00:16]}  Ke1 {[%clk 0:00:19]} 85. Qgg1# {[%clk 0:00:17]} 1-0


[Site "https://www.chess.com"]

[Event "Titled Tuesday Blitz June 21 Late 2022"]
[White "Zakarian, David"]
[Black "Svicevic, Rastko"]
[WhiteFideId "13301276"]
[BlackFideId "916315"]
[WhiteElo "2449"]
[BlackElo "2049"]
[Result "0-1"]
[Round "06"]
[TimeControl "180+1"]
[Date "2022.06.22"]
[WhiteClock "0:00:03"]
[BlackClock "0:00:27"]

1. d4 {[%clk 0:03:00]}  d5 {[%clk 0:02:53]} 2. c4 {[%clk 0:02:59]}  e6 {[%clk 0:02:54]} 3. Nc3 {[%clk 0:02:58]}  f5 {[%clk 0:02:54]} 4. Bf4 {[%clk 0:02:51]}  c6 {[%clk 0:02:55]} 5. e3 {[%clk 0:02:50]}  Nf6 {[%clk 0:02:55]} 6. Nf3 {[%clk 0:02:47]}  Be7 {[%clk 0:02:55]} 7. Ne5 {[%clk 0:02:37]}  Nbd7 {[%clk 0:02:50]} 8. cxd5 {[%clk 0:02:36]}  exd5 {[%clk 0:02:48]} 9. Bd3 {[%clk 0:02:35]}  Ne4 {[%clk 0:02:44]} 10. O-O {[%clk 0:02:33]}  Nxe5 {[%clk 0:02:38]} 11. Bxe5 {[%clk 0:02:32]}  Bf6 {[%clk 0:02:36]} 12. Bxf6 {[%clk 0:02:08]}  Qxf6 {[%clk 0:02:37]} 13. Ne2 {[%clk 0:02:06]}  O-O {[%clk 0:02:33]} 14. Qb3 {[%clk 0:02:06]}  Nd2 {[%clk 0:02:24]} 15. Qc2 {[%clk 0:02:04]}  Nxf1 {[%clk 0:02:24]} 16. Rxf1 {[%clk 0:02:04]}  Bd7 {[%clk 0:02:19]} 17. b4 {[%clk 0:02:04]}  a5 {[%clk 0:02:18]} 18. a3 {[%clk 0:02:03]}  axb4 {[%clk 0:02:18]} 19. axb4 {[%clk 0:02:03]}  Qd6 {[%clk 0:02:17]} 20. Qb3 {[%clk 0:02:01]}  b5 {[%clk 0:02:08]} 21. Rb1 {[%clk 0:01:48]}  Ra7 {[%clk 0:01:59]} 22. Nf4 {[%clk 0:01:47]}  Rfa8 {[%clk 0:01:58]} 23. Bf1 {[%clk 0:01:44]}  Ra3 {[%clk 0:01:55]} 24. Qb2 {[%clk 0:01:41]}  Ra2 {[%clk 0:01:54]} 25. Qc1 {[%clk 0:01:40]}  R8a4 {[%clk 0:01:47]} 26. Nd3 {[%clk 0:01:40]}  Be8 {[%clk 0:01:36]} 27. g3 {[%clk 0:01:32]}  h6 {[%clk 0:01:32]} 28. Bh3 {[%clk 0:01:23]}  g6 {[%clk 0:01:32]} 29. Bg2 {[%clk 0:01:21]}  Kg7 {[%clk 0:01:29]} 30. Qe1 {[%clk 0:01:16]}  Qe7 {[%clk 0:01:24]} 31. Ne5 {[%clk 0:01:05]}  Rc2 {[%clk 0:01:15]} 32. Bf1 {[%clk 0:00:35]}  Raa2 {[%clk 0:01:06]} 33. Bd3 {[%clk 0:00:33]}  Rcb2 {[%clk 0:00:55]} 34. Kg2 {[%clk 0:00:18]}  Rxb1 {[%clk 0:00:48]} 35. Qxb1 {[%clk 0:00:17]}  Ra4 {[%clk 0:00:46]} 36. Bc2 {[%clk 0:00:16]}  Qxb4 {[%clk 0:00:39]} 37. Qd1 {[%clk 0:00:13]}  Ra2 {[%clk 0:00:36]} 38. Bd3 {[%clk 0:00:03]}  Qd2 {[%clk 0:00:32]} 39. Qf1 {[%clk 0:00:03]}  b4 {[%clk 0:00:30]} 40. h4 {[%clk 0:00:04]}  b3 {[%clk 0:00:29]} 41. h5 {[%clk 0:00:03]}  b2 {[%clk 0:00:27]} 0-1


[Site "https://www.chess.com"]

[Event "Titled Tuesday Blitz June 21 Late 2022"]
[White "Aksu, Vedat Ali"]
[Black "Estrada Nieto, Julian"]
[WhiteFideId "6304320"]
[BlackFideId "5101018"]
[WhiteElo "2303"]
[BlackElo "2252"]
[Result "0-1"]
[Round "07"]
[TimeControl "180+1"]
[Date "2022.06.22"]
[WhiteClock "0:00:12"]
[BlackClock "0:00:07"]

1. Nf3 {[%clk 0:03:00]}  d5 {[%clk 0:02:59]} 2. e3 {[%clk 0:03:00]}  Bg4 {[%clk 0:03:00]} 3. c4 {[%clk 0:02:59]}  c6 {[%clk 0:02:35]} 4. Qc2 {[%clk 0:02:57]}  Bxf3 {[%clk 0:02:31]} 5. gxf3 {[%clk 0:02:57]}  e6 {[%clk 0:02:31]} 6. b3 {[%clk 0:02:57]}  Nf6 {[%clk 0:02:31]} 7. Bb2 {[%clk 0:02:57]}  g6 {[%clk 0:02:31]} 8. Nc3 {[%clk 0:02:58]}  Bg7 {[%clk 0:02:31]} 9. Be2 {[%clk 0:02:58]}  O-O {[%clk 0:02:31]} 10. f4 {[%clk 0:02:57]}  Nbd7 {[%clk 0:02:31]} 11. h4 {[%clk 0:02:58]}  Qc7 {[%clk 0:02:17]} 12. h5 {[%clk 0:02:57]}  d4 {[%clk 0:02:17]} 13. Nd1 {[%clk 0:02:49]}  c5 {[%clk 0:02:11]} 14. hxg6 {[%clk 0:02:49]}  hxg6 {[%clk 0:02:05]} 15. f3 {[%clk 0:02:44]}  e5 {[%clk 0:02:03]} 16. fxe5 {[%clk 0:02:41]}  Qxe5 {[%clk 0:01:56]} 17. f4 {[%clk 0:02:39]}  Qe4 {[%clk 0:01:40]} 18. Qxe4 {[%clk 0:02:38]}  Nxe4 {[%clk 0:01:41]} 19. Bf3 {[%clk 0:02:38]}  Rfe8 {[%clk 0:01:38]} 20. Rb1 {[%clk 0:02:13]}  Rad8 {[%clk 0:01:23]} 21. Nf2 {[%clk 0:02:11]}  Nxd2 {[%clk 0:01:21]} 22. Kxd2 {[%clk 0:02:04]}  dxe3+ {[%clk 0:01:20]} 23. Ke2 {[%clk 0:02:03]}  exf2+ {[%clk 0:01:20]} 24. Kxf2 {[%clk 0:02:03]}  Bxb2 {[%clk 0:01:15]} 25. Rxb2 {[%clk 0:02:03]}  Nf6 {[%clk 0:01:15]} 26. Bxb7 {[%clk 0:02:00]}  Rd4 {[%clk 0:01:05]} 27. Kf3 {[%clk 0:01:56]}  Nh5 {[%clk 0:00:53]} 28. Rh4 {[%clk 0:01:54]}  Re1 {[%clk 0:00:50]} 29. Rg2 {[%clk 0:01:48]}  Rf1+ {[%clk 0:00:48]} 30. Ke2 {[%clk 0:01:38]}  Rfd1 {[%clk 0:00:37]} 31. Rgg4 {[%clk 0:00:48]}  R1d2+ {[%clk 0:00:32]} 32. Ke1 {[%clk 0:00:47]}  Nf6 {[%clk 0:00:22]} 33. Rg5 {[%clk 0:00:42]}  Rd1+ {[%clk 0:00:20]} 34. Ke2 {[%clk 0:00:42]}  R1d2+ {[%clk 0:00:19]} 35. Ke1 {[%clk 0:00:42]}  Rxa2 {[%clk 0:00:16]} 36. Rxc5 {[%clk 0:00:40]}  Rdd2 {[%clk 0:00:13]} 37. Rc7 {[%clk 0:00:31]}  Rdb2 {[%clk 0:00:12]} 38. Rc8+ {[%clk 0:00:25]}  Kg7 {[%clk 0:00:12]} 39. Rd8 {[%clk 0:00:26]}  Rxb3 {[%clk 0:00:11]} 40. f5 {[%clk 0:00:21]}  Rxb7 {[%clk 0:00:10]} 41. fxg6 {[%clk 0:00:20]}  Re7+ {[%clk 0:00:09]} 42. Kd1 {[%clk 0:00:18]}  fxg6 {[%clk 0:00:09]} 43. Rd6 {[%clk 0:00:17]}  Rf2 {[%clk 0:00:08]} 44. Rh3 {[%clk 0:00:16]}  Ree2 {[%clk 0:00:07]} 45. Rg3 {[%clk 0:00:16]}  Rg2 {[%clk 0:00:07]} 46. Ra3 {[%clk 0:00:13]}  Ref2 {[%clk 0:00:07]} 47. Rxa7+ {[%clk 0:00:13]}  Kh6 {[%clk 0:00:07]} 48. Ke1 {[%clk 0:00:12]}  Rc2 {[%clk 0:00:07]} 49. Raa6 {[%clk 0:00:12]}  Rg1# {[%clk 0:00:07]} 0-1


[Site "https://www.chess.com"]

[Event "Titled Tuesday Blitz June 21 Late 2022"]
[White "Al-Tarboush, Ward"]
[Black "Murzin, Volodar"]
[WhiteFideId "7601450"]
[BlackFideId "44155573"]
[WhiteElo "2249"]
[BlackElo "2585"]
[Result "0-1"]
[Round "07"]
[TimeControl "180+1"]
[Date "2022.06.21"]
[WhiteClock "0:00:03"]
[BlackClock "0:00:48"]

1. e4 {[%clk 0:03:00]}  c5 {[%clk 0:02:53]} 2. Nf3 {[%clk 0:03:01]}  d6 {[%clk 0:02:53]} 3. d4 {[%clk 0:03:01]}  cxd4 {[%clk 0:02:53]} 4. Nxd4 {[%clk 0:03:02]}  Nf6 {[%clk 0:02:53]} 5. Nc3 {[%clk 0:03:02]}  a6 {[%clk 0:02:53]} 6. h3 {[%clk 0:03:02]}  b5 {[%clk 0:02:42]} 7. a4 {[%clk 0:02:53]}  b4 {[%clk 0:02:41]} 8. Nd5 {[%clk 0:02:53]}  e6 {[%clk 0:02:39]} 9. Nxf6+ {[%clk 0:02:47]}  Qxf6 {[%clk 0:02:39]} 10. Be2 {[%clk 0:02:38]}  Bb7 {[%clk 0:02:37]} 11. Qd3 {[%clk 0:02:38]}  Nd7 {[%clk 0:02:32]} 12. f3 {[%clk 0:02:30]}  Qh4+ {[%clk 0:02:27]} 13. Kf1 {[%clk 0:02:27]}  d5 {[%clk 0:02:26]} 14. exd5 {[%clk 0:02:24]}  Bxd5 {[%clk 0:02:25]} 15. c4 {[%clk 0:02:17]}  Ne5 {[%clk 0:02:20]} 16. Qc2 {[%clk 0:02:01]}  Rc8 {[%clk 0:02:14]} 17. Be3 {[%clk 0:01:51]}  Nxc4 {[%clk 0:02:09]} 18. Bxc4 {[%clk 0:01:42]}  Rxc4 {[%clk 0:02:06]} 19. Qd2 {[%clk 0:01:39]}  Bc5 {[%clk 0:01:55]} 20. Nf5 {[%clk 0:00:38]}  Qf6 {[%clk 0:01:41]} 21. Bxc5 {[%clk 0:00:30]}  Qxf5 {[%clk 0:01:41]} 22. Bxb4 {[%clk 0:00:28]}  Rc2 {[%clk 0:01:33]} 23. Qe3 {[%clk 0:00:16]}  Rxb2 {[%clk 0:01:07]} 24. Bc3 {[%clk 0:00:16]}  Rb3 {[%clk 0:01:02]} 25. Qd4 {[%clk 0:00:15]}  f6 {[%clk 0:00:58]} 26. Bb4 {[%clk 0:00:07]}  Qc2 {[%clk 0:00:50]} 27. Qc5 {[%clk 0:00:04]}  Qc4+ {[%clk 0:00:48]} 28. Kg1 {[%clk 0:00:03]}  Rxb4 {[%clk 0:00:48]} 0-1


[Site "https://www.chess.com"]

[Event "Titled Tuesday Blitz June 21 Late 2022"]
[White "Ambartsumova, Karina"]
[Black "Abarca Gonzalez, Nicolas"]
[WhiteFideId "4166299"]
[BlackFideId "3409422"]
[WhiteElo "2262"]
[BlackElo "2504"]
[Result "0-1"]
[Round "07"]
[TimeControl "180+1"]
[Date "2022.06.21"]
[WhiteClock "0:00:04"]
[BlackClock "0:00:11"]

1. Nf3 {[%clk 0:03:00]}  Nf6 {[%clk 0:02:54]} 2. g3 {[%clk 0:02:59]}  g6 {[%clk 0:02:54]} 3. Bg2 {[%clk 0:03:00]}  Bg7 {[%clk 0:02:54]} 4. d4 {[%clk 0:03:00]}  O-O {[%clk 0:02:55]} 5. O-O {[%clk 0:03:01]}  d6 {[%clk 0:02:55]} 6. b3 {[%clk 0:03:01]}  a5 {[%clk 0:02:54]} 7. a4 {[%clk 0:02:59]}  Bf5 {[%clk 0:02:52]} 8. Bb2 {[%clk 0:02:59]}  Nc6 {[%clk 0:02:44]} 9. Na3 {[%clk 0:02:59]}  Nb4 {[%clk 0:02:41]} 10. Re1 {[%clk 0:02:58]}  Be4 {[%clk 0:02:40]} 11. c3 {[%clk 0:02:48]}  Nc6 {[%clk 0:02:36]} 12. Nb5 {[%clk 0:02:44]}  Qd7 {[%clk 0:02:30]} 13. Bf1 {[%clk 0:02:39]}  Na7 {[%clk 0:02:24]} 14. Nxa7 {[%clk 0:02:36]}  Rxa7 {[%clk 0:02:25]} 15. Nd2 {[%clk 0:02:36]}  d5 {[%clk 0:02:22]} 16. f3 {[%clk 0:02:27]}  Bf5 {[%clk 0:02:21]} 17. e4 {[%clk 0:02:27]}  dxe4 {[%clk 0:02:16]} 18. fxe4 {[%clk 0:02:28]}  Bg4 {[%clk 0:02:16]} 19. Qc2 {[%clk 0:02:28]}  e5 {[%clk 0:02:13]} 20. Bg2 {[%clk 0:02:18]}  exd4 {[%clk 0:02:04]} 21. cxd4 {[%clk 0:02:19]}  Nh5 {[%clk 0:02:02]} 22. d5 {[%clk 0:02:01]}  Bxb2 {[%clk 0:01:54]} 23. Qxb2 {[%clk 0:02:02]}  c6 {[%clk 0:01:54]} 24. Nc4 {[%clk 0:01:56]}  Bh3 {[%clk 0:01:50]} 25. Qd4 {[%clk 0:01:25]}  Ra6 {[%clk 0:01:44]} 26. Ne5 {[%clk 0:01:19]}  Qc8 {[%clk 0:01:42]} 27. d6 {[%clk 0:01:12]}  c5 {[%clk 0:01:35]} 28. Qd3 {[%clk 0:00:59]}  Rd8 {[%clk 0:01:30]} 29. Nc4 {[%clk 0:00:25]}  Bxg2 {[%clk 0:01:10]} 30. Kxg2 {[%clk 0:00:26]}  Ng7 {[%clk 0:01:11]} 31. e5 {[%clk 0:00:25]}  Nf5 {[%clk 0:01:09]} 32. Rad1 {[%clk 0:00:23]}  Nd4 {[%clk 0:01:09]} 33. Rf1 {[%clk 0:00:22]}  Qc6+ {[%clk 0:01:05]} 34. Kg1 {[%clk 0:00:19]}  Rd7 {[%clk 0:01:05]} 35. Rde1 {[%clk 0:00:18]}  Ra8 {[%clk 0:01:04]} 36. Qe4 {[%clk 0:00:16]}  Qxe4 {[%clk 0:00:57]} 37. Rxe4 {[%clk 0:00:17]}  Re8 {[%clk 0:00:57]} 38. Re3 {[%clk 0:00:15]}  Kg7 {[%clk 0:00:52]} 39. Nb6 {[%clk 0:00:15]}  Rxd6 {[%clk 0:00:48]} 40. exd6 {[%clk 0:00:11]}  Rxe3 {[%clk 0:00:49]} 41. d7 {[%clk 0:00:11]}  Ne6 {[%clk 0:00:48]} 42. Rd1 {[%clk 0:00:11]}  Rxb3 {[%clk 0:00:46]} 43. Nc4 {[%clk 0:00:08]}  Rb4 {[%clk 0:00:45]} 44. Nxa5 {[%clk 0:00:08]}  Nd8 {[%clk 0:00:44]} 45. Re1 {[%clk 0:00:08]}  Rxa4 {[%clk 0:00:40]} 46. Re8 {[%clk 0:00:06]}  Rxa5 {[%clk 0:00:39]} 47. Rxd8 {[%clk 0:00:07]}  Ra1+ {[%clk 0:00:39]} 48. Kg2 {[%clk 0:00:07]}  Rd1 {[%clk 0:00:39]} 49. Rc8 {[%clk 0:00:06]}  Rxd7 {[%clk 0:00:39]} 50. Rxc5 {[%clk 0:00:07]}  b6 {[%clk 0:00:40]} 51. Rb5 {[%clk 0:00:07]}  Rb7 {[%clk 0:00:40]} 52. Kf3 {[%clk 0:00:08]}  Kf6 {[%clk 0:00:41]} 53. Kf4 {[%clk 0:00:09]}  h6 {[%clk 0:00:40]} 54. h4 {[%clk 0:00:09]}  Ke6 {[%clk 0:00:40]} 55. g4 {[%clk 0:00:09]}  f6 {[%clk 0:00:39]} 56. g5 {[%clk 0:00:09]}  hxg5+ {[%clk 0:00:40]} 57. hxg5 {[%clk 0:00:10]}  f5 {[%clk 0:00:41]} 58. Kf3 {[%clk 0:00:09]}  Kd6 {[%clk 0:00:39]} 59. Kf4 {[%clk 0:00:09]}  Kc6 {[%clk 0:00:38]} 60. Re5 {[%clk 0:00:09]}  Rd7 {[%clk 0:00:35]} 61. Re8 {[%clk 0:00:06]}  Kd5 {[%clk 0:00:30]} 62. Rb8 {[%clk 0:00:05]}  Rd6 {[%clk 0:00:30]} 63. Rb7 {[%clk 0:00:05]}  Kc5 {[%clk 0:00:27]} 64. Ke5 {[%clk 0:00:05]}  Rc6 {[%clk 0:00:25]} 65. Rb8 {[%clk 0:00:04]}  b5 {[%clk 0:00:24]} 66. Rd8 {[%clk 0:00:02]}  b4 {[%clk 0:00:23]} 67. Rd1 {[%clk 0:00:03]}  Kc4 {[%clk 0:00:19]} 68. Rc1+ {[%clk 0:00:03]}  Kb5 {[%clk 0:00:19]} 69. Rb1 {[%clk 0:00:03]}  Rb6 {[%clk 0:00:19]} 70. Kd5 {[%clk 0:00:03]}  Ra6 {[%clk 0:00:15]} 71. Kd4 {[%clk 0:00:03]}  Rc6 {[%clk 0:00:12]} 72. Kd5 {[%clk 0:00:03]}  Rc4 {[%clk 0:00:11]} 73. Rb3 {[%clk 0:00:03]}  Rg4 {[%clk 0:00:11]} 74. Ke6 {[%clk 0:00:03]}  Rxg5 {[%clk 0:00:12]} 75. Re3 {[%clk 0:00:04]}  Rg1 {[%clk 0:00:12]} 76. Rg3 {[%clk 0:00:04]}  Rxg3 {[%clk 0:00:11]} 0-1


[Site "https://www.chess.com"]

[Event "Titled Tuesday Blitz June 21 Late 2022"]
[White "Araujo Filho, Luiz Antonio Coel"]
[Black "Winkels, Marcel"]
[WhiteFideId "2130661"]
[BlackFideId "1003887"]
[WhiteElo "2182"]
[BlackElo "1900"]
[Result "0-1"]
[Round "07"]
[TimeControl "180+1"]
[Date "2022.06.22"]
[WhiteClock "0:01:19"]
[BlackClock "0:01:36"]

1. d4 {[%clk 0:03:00]}  Nf6 {[%clk 0:02:58]} 2. Nf3 {[%clk 0:03:01]}  g6 {[%clk 0:02:57]} 3. c4 {[%clk 0:03:00]}  Bg7 {[%clk 0:02:57]} 4. Nc3 {[%clk 0:03:01]}  d5 {[%clk 0:02:56]} 5. cxd5 {[%clk 0:03:00]}  Nxd5 {[%clk 0:02:57]} 6. Nxd5 {[%clk 0:03:01]}  Qxd5 {[%clk 0:02:56]} 7. e3 {[%clk 0:03:02]}  c5 {[%clk 0:02:54]} 8. dxc5 {[%clk 0:03:01]}  Qxd1+ {[%clk 0:02:52]} 9. Kxd1 {[%clk 0:03:02]}  Nd7 {[%clk 0:02:51]} 10. Bb5 {[%clk 0:02:58]}  O-O {[%clk 0:02:48]} 11. Be2 {[%clk 0:02:58]}  Nxc5 {[%clk 0:02:47]} 12. Ke1 {[%clk 0:02:51]}  Bf5 {[%clk 0:02:42]} 13. Kf1 {[%clk 0:02:50]}  Rfd8 {[%clk 0:02:38]} 14. h3 {[%clk 0:02:51]}  h5 {[%clk 0:02:37]} 15. g3 {[%clk 0:02:51]}  Be4 {[%clk 0:02:29]} 16. Kg2 {[%clk 0:02:47]}  g5 {[%clk 0:02:28]} 17. g4 {[%clk 0:02:47]}  hxg4 {[%clk 0:02:20]} 18. hxg4 {[%clk 0:02:47]}  Na4 {[%clk 0:02:14]} 19. Kg3 {[%clk 0:02:30]}  Bf6 {[%clk 0:02:11]} 20. Rh5 {[%clk 0:02:24]}  Bg6 {[%clk 0:02:05]} 21. Rh1 {[%clk 0:02:17]}  Rac8 {[%clk 0:02:05]} 22. Ne1 {[%clk 0:01:55]}  Nxb2 {[%clk 0:01:59]} 23. Bxb2 {[%clk 0:01:36]}  Bxb2 {[%clk 0:01:57]} 24. Rd1 {[%clk 0:01:37]}  Rxd1 {[%clk 0:01:43]} 25. Bxd1 {[%clk 0:01:37]}  Rc1 {[%clk 0:01:40]} 26. Bf3 {[%clk 0:01:31]}  Bc3 {[%clk 0:01:39]} 27. Nd3 {[%clk 0:01:19]}  Rxh1 {[%clk 0:01:36]} 0-1


[Site "https://www.chess.com"]